[Event "98th Caplin Hastings Masters 2024-25"]
[Site "Hastings"]
[Date "2024.12.30"]
[Round "4.18"]
[White "Alcindor, Samuel"]
[Black "Saunders, Aron"]
[Result "0-1"]
[ECO "B10"]
[WhiteElo "1927"]
[BlackElo "2106"]
[Annotator "RC"]
[PlyCount "78"]
[EventDate "2024.12.23"]
[EventType "swiss"]
[EventCountry "ENG"]
[SourceTitle "playchess.com"]
[Source "ChessBase"]
[SourceQuality "1"]
[TimeControl "5400+30"]

1. e4 {[%emt 0:00:09]} c6 {[%emt 0:00:04]} 2. c4 {[%emt 0:00:05]} d5 {[%emt 0:00:05]} 3. cxd5 {[%emt 0:00:04]} cxd5 {[%emt 0:00:04]} 4. exd5 {[%emt 0:00:05]} Nf6 {[%emt 0:00:04]} 5. Bb5+ {[%emt 0:00:05]} Nbd7 {[%emt 0:00:38]} 6. Nc3 {[%emt 0:00:06]} a6 {[%emt 0:02:22]} 7. Ba4 {[%emt 0:00:07]} b5 {[%emt 0:01:39]} 8. Bb3 {[%emt 0:00:06]} Bb7 {[%emt 0:01:09]} 9. d4 {[%emt 0:02:46]} Nb6 {[%emt 0:02:34]} 10. Nf3 {[%emt 0:00:34]} Nbxd5 {[%emt 0:00:21]} 11. O-O {[%emt 0:02:46]} e6 {[%emt 0:01:00]} 12. Bg5 {[%emt 0:08:35]} Be7 {[%emt 0:00:56]} 13. Ne5 {[%emt 0:09:36]} O-O {[%emt 0:01:27]} 14. Qd3 {[%emt 0:06:36]} h6 {[%emt 0:06:38]} 15. Nxd5 {[%emt 0:19:14]} Nxd5 {[%emt 0:10:01]} 16. Bc2 {[%emt 0:07:58]} f5 {[%emt 0:00:09]} 17. Bxh6 {[%emt 0:03:52]} gxh6 {[%emt 0:05:20]} 18. Qg3+ {[%emt 0:00:52]} Kh8 {[%emt 0:04:33]} 19. Qg6 {[%emt 0:04:57]} Rf6 {[%emt 0:01:21]} 20. Nf7+ {[%emt 0:01:54]} Rxf7 {[%emt 0:00:05]} 21. Qxf7 {[%emt 0:00:08]} Qg8 {[%emt 0:00:54]} 22. Qxg8+ {[%emt 0:01:08]} Rxg8 {[%emt 0:00:06]} 23. g3 {[%emt 0:03:21]} Bf6 {[%emt 0:02:24]} 24. Rfe1 {[%emt 0:01:45]} Bc8 {[%emt 0:04:47]} 25. Rad1 {[%emt 0:04:07]} Kg7 {[%emt 0:00:53]} 26. f4 {[%emt 0:01:33]} Kf7 {[%emt 0:00:28]} 27. Kf2 {[%emt 0:00:17]} Rd8 {[%emt 0:00:56]} 28. Re2 {[%emt 0:03:28]} Nb4 {[%emt 0:04:05]} 29. a3 {[%emt 0:03:58]} Nc6 {[%emt 0:01:42]} 30. Bb1 {[%emt 0:04:16]} Rxd4 {[%emt 0:05:42]} 31. Rde1 {[%emt 0:01:26]} Rd6 {[%emt 0:00:56]} 32. Rc1 {[%emt 0:01:45]} Bb7 {[%emt 0:01:22]} 33. Ba2 {[%emt 0:00:31]} Bd4+ {[%emt 0:01:28]} 34. Kf1 {[%emt 0:01:20]} Bb6 {[%emt 0:00:21]} 35. Rce1 {[%emt 0:01:49]} Nd4 {[%emt 0:00:52]} 36. Re5 {[%emt 0:00:32]} Be4 {[%emt 0:03:27]} 37. g4 {[%emt 0:04:44]} Nf3 {[%emt 0:00:56]} 38. gxf5 {[%emt 0:00:23]} Nxh2+ {[%emt 0:00:51]} 39. Ke2 {[%emt 0:00:12]} Bf3# {[%emt 0:00:37]} 0-1

[Event "98th Caplin Hastings Masters 2024-25"]
[Site "Hastings"]
[Date "2024.12.30"]
[Round "4.19"]
[White "Steiners, Emils"]
[Black "Ahn, Sungmin"]
[Result "1-0"]
[ECO "E49"]
[WhiteElo "2209"]
[BlackElo "1926"]
[Annotator "RC"]
[PlyCount "65"]
[EventDate "2024.12.23"]
[EventType "swiss"]
[EventCountry "ENG"]
[SourceTitle "playchess.com"]
[Source "ChessBase"]
[SourceQuality "1"]
[TimeControl "5400+30"]

1. d4 {[%emt 0:00:05]} Nf6 {[%emt 0:00:01]} 2. c4 {[%emt 0:00:11]} e6 {[%emt 0:00:01]} 3. Nc3 {[%emt 0:00:13]} Bb4 {[%emt 0:00:03]} 4. e3 {[%emt 0:00:16]} O-O {[%emt 0:00:15]} 5. Bd3 {[%emt 0:00:12]} d5 {[%emt 0:00:05]} 6. a3 {[%emt 0:00:17]} Bxc3+ {[%emt 0:01:02]} 7. bxc3 {[%emt 0:00:21]} dxc4 {[%emt 0:00:28]} 8. Bxc4 {[%emt 0:00:14]} c5 {[%emt 0:00:06]} 9. Ne2 {[%emt 0:00:43]} Qc7 {[%emt 0:00:07]} 10. Bd3 {[%emt 0:00:32]} e5 {[%emt 0:00:32]} 11. e4 {[%emt 0:01:03]} cxd4 {[%emt 0:06:58]} 12. cxd4 {[%emt 0:00:23]} exd4 {[%emt 0:04:36]} 13. O-O {[%emt 0:01:18]} Re8 {[%emt 0:12:48]} 14. Ng3 {[%emt 0:21:05]} Bg4 {[%emt 0:07:50]} 15. f3 {[%emt 0:02:44]} Be6 {[%emt 0:01:16]} 16. Bd2 {[%emt 0:02:35]} Nc6 {[%emt 0:08:57]} 17. f4 {[%emt 0:03:44]} b5 {[%emt 0:12:04]} 18. e5 {[%emt 0:13:23]} Nd7 {[%emt 0:07:09]} 19. Rc1 {[%emt 0:12:38]} Bc4 {[%emt 0:18:51]} 20. Bxc4 {[%emt 0:03:32]} bxc4 {[%emt 0:00:03]} 21. Rxc4 {[%emt 0:01:28]} Nb6 {[%emt 0:00:09]} 22. Ba5 {[%emt 0:03:18]} Qd7 {[%emt 0:00:04]} 23. Bxb6 {[%emt 0:00:27]} axb6 {[%emt 0:00:02]} 24. Qd3 {[%emt 0:02:29]} Qd5 {[%emt 0:01:15]} 25. Ne4 {[%emt 0:09:00]} Rxa3 {[%emt 0:02:27]} 26. Qxa3 {[%emt 0:05:12]} Qxc4 {[%emt 0:00:02]} 27. Nd6 {[%emt 0:05:12]} Qe6 {[%emt 0:00:17]} 28. Qa4 {[%emt 0:04:03]} Rd8 {[%emt 0:02:36]} 29. Qxc6 {[%emt 0:00:29]} f6 {[%emt 0:00:09]} 30. Qxb6 {[%emt 0:02:50]} Ra8 {[%emt 0:02:36]} 31. Qxd4 {[%emt 0:00:30]} Ra6 {[%emt 0:02:22]} 32. Rc1 {[%emt 0:00:43]} h6 {[%emt 0:01:34]} 33. Rc8+ {[%emt 0:00:12]} 1-0

[Event "98th Caplin Hastings Masters 2024-25"]
[Site "Hastings"]
[Date "2024.12.30"]
[Round "4.20"]
[White "Bilandzic, Ante"]
[Black "Cheng, Louis"]
[Result "1-0"]
[ECO "A48"]
[WhiteElo "1912"]
[BlackElo "2087"]
[Annotator "RC"]
[PlyCount "101"]
[EventDate "2024.12.23"]
[EventType "swiss"]
[EventCountry "ENG"]
[SourceTitle "playchess.com"]
[Source "ChessBase"]
[SourceQuality "1"]
[TimeControl "5400+30"]

1. d4 {[%emt 0:00:02]} Nf6 {[%emt 0:00:07]} 2. Nf3 {[%emt 0:00:04]} g6 {[%emt 0:00:05]} 3. Bf4 {[%emt 0:00:03]} Bg7 {[%emt 0:00:07]} 4. e3 {[%emt 0:00:02]} d6 {[%emt 0:00:07]} 5. Nbd2 {[%emt 0:00:03]} c5 {[%emt 0:00:19]} 6. c3 {[%emt 0:00:02]} Nc6 {[%emt 0:03:43]} 7. Be2 {[%emt 0:00:09]} O-O {[%emt 0:01:08]} 8. O-O {[%emt 0:00:02]} Bf5 {[%emt 0:02:23]} 9. h3 {[%emt 0:00:50]} cxd4 {[%emt 0:00:30]} 10. exd4 {[%emt 0:00:09]} Qc7 {[%emt 0:03:43]} 11. Re1 {[%emt 0:01:30]} Rad8 {[%emt 0:04:01]} 12. Bf1 {[%emt 0:00:08]} Nd5 {[%emt 0:04:36]} 13. Bh2 {[%emt 0:04:37]} e5 {[%emt 0:01:57]} 14. Nb3 {[%emt 0:05:37]} Rfe8 {[%emt 0:02:28]} 15. Qd2 {[%emt 0:08:27]} a5 {[%emt 0:09:55]} 16. Bb5 {[%emt 0:03:17]} e4 {[%emt 0:05:26]} 17. Nh4 {[%emt 0:03:43]} Bd7 {[%emt 0:00:21]} 18. Nc5 {[%emt 0:11:18]} Qb6 {[%emt 0:10:24]} 19. Bxc6 {[%emt 0:01:00]} e3 {[%emt 0:04:59]} 20. fxe3 {[%emt 0:00:18]} Bxc6 {[%emt 0:02:37]} 21. Nd3 {[%emt 0:07:04]} Re4 {[%emt 0:02:54]} 22. Bf4 {[%emt 0:03:04]} Rde8 {[%emt 0:01:54]} 23. Nf2 {[%emt 0:01:13]} R4e6 {[%emt 0:00:48]} 24. Nf3 {[%emt 0:07:23]} Nxf4 {[%emt 0:02:11]} 25. exf4 {[%emt 0:00:08]} Bxf3 {[%emt 0:00:17]} 26. Rxe6 {[%emt 0:00:39]} Rxe6 {[%emt 0:02:07]} 27. gxf3 {[%emt 0:00:16]} Qb5 {[%emt 0:01:38]} 28. Nd3 {[%emt 0:01:15]} Qh5 {[%emt 0:00:42]} 29. Kg2 {[%emt 0:02:00]} h6 {[%emt 0:01:53]} 30. Re1 {[%emt 0:01:29]} Rf6 {[%emt 0:00:22]} 31. Qf2 {[%emt 0:04:27]} Qf5 {[%emt 0:01:07]} 32. Re4 {[%emt 0:01:56]} Kh7 {[%emt 0:01:38]} 33. Qe2 {[%emt 0:06:22]} b6 {[%emt 0:01:39]} 34. Qe3 {[%emt 0:00:42]} b5 {[%emt 0:00:27]} 35. a3 {[%emt 0:00:09]} Qd5 {[%emt 0:01:07]} 36. Kg3 {[%emt 0:01:06]} Rf5 {[%emt 0:01:23]} 37. Re7 {[%emt 0:01:40]} Rh5 {[%emt 0:01:25]} 38. Qe4 {[%emt 0:02:22]} Qb3 {[%emt 0:00:31]} 39. Rd7 {[%emt 0:02:57]} a4 {[%emt 0:07:03]} 40. Qe8 {[%emt 0:01:38]} Qd1 {[%emt 0:00:34]} 41. Ne1 {[%emt 0:00:04]} Rf5 {[%emt 0:03:38]} 42. Rd8 {[%emt 0:00:15]} g5 {[%emt 0:00:55]} 43. Qe4 {[%emt 0:00:20]} Kg6 {[%emt 0:00:31]} 44. Rxd6+ {[%emt 0:00:06]} Bf6 {[%emt 0:00:09]} 45. fxg5 {[%emt 0:00:49]} hxg5 {[%emt 0:04:07]} 46. Kg4 {[%emt 0:00:10]} Kg7 {[%emt 0:02:39]} 47. Kxf5 {[%emt 0:00:19]} Qd2 {[%emt 0:01:19]} 48. Rxf6 {[%emt 0:00:47]} Qh2 {[%emt 0:00:23]} 49. Qg4 {[%emt 0:01:03]} Kf8 {[%emt 0:00:14]} 50. Rh6 {[%emt 0:02:29]} Qe2 {[%emt 0:00:28]} 51. Qxg5 {[%emt 0:01:43]} 1-0

[Event "98th Caplin Hastings Masters 2024-25"]
[Site "Hastings"]
[Date "2024.12.30"]
[Round "4.21"]
[White "Bin-Suhayl, Ieysaa"]
[Black "Kennedy, Craig"]
[Result "1-0"]
[ECO "A55"]
[WhiteElo "2183"]
[BlackElo "1851"]
[Annotator "RC"]
[PlyCount "49"]
[EventDate "2024.12.23"]
[EventType "swiss"]
[EventCountry "ENG"]
[SourceTitle "playchess.com"]
[Source "ChessBase"]
[SourceQuality "1"]
[TimeControl "5400+30"]

1. Nf3 {[%emt 0:10:55]} Nf6 {[%emt 0:00:15]} 2. g3 {[%emt 0:02:26]} d6 {[%emt 0:00:16]} 3. d4 {[%emt 0:00:05]} Nbd7 {[%emt 0:00:07]} 4. c4 {[%emt 0:00:44]} e5 {[%emt 0:00:09]} 5. Nc3 {[%emt 0:00:09]} Be7 {[%emt 0:00:05]} 6. Bg2 {[%emt 0:01:02]} O-O {[%emt 0:00:10]} 7. O-O {[%emt 0:00:10]} c6 {[%emt 0:00:04]} 8. e4 {[%emt 0:09:35]} Re8 {[%emt 0:00:14]} 9. Qc2 {[%emt 0:02:47]} Bf8 {[%emt 0:00:14]} 10. h3 {[%emt 0:01:33]} Qc7 {[%emt 0:00:07]} 11. Be3 {[%emt 0:01:51]} a6 {[%emt 0:02:48]} 12. a4 {[%emt 0:05:49]} a5 {[%emt 0:02:48]} 13. b3 {[%emt 0:01:19]} Nb8 {[%emt 0:08:38]} 14. c5 {[%emt 0:09:11]} Nbd7 {[%emt 0:04:52]} 15. cxd6 {[%emt 0:03:37]} Bxd6 {[%emt 0:00:11]} 16. dxe5 {[%emt 0:00:31]} Nxe5 {[%emt 0:00:07]} 17. Nd4 {[%emt 0:00:10]} Ng6 {[%emt 0:16:33]} 18. f4 {[%emt 0:03:34]} Bb4 {[%emt 0:02:32]} 19. e5 {[%emt 0:07:28]} Nd7 {[%emt 0:00:49]} 20. Nd5 {[%emt 0:08:08]} Qd8 {[%emt 0:00:35]} 21. Nxb4 {[%emt 0:00:04]} axb4 {[%emt 0:00:07]} 22. Rad1 {[%emt 0:01:55]} Qa5 {[%emt 0:03:35]} 23. Kh2 {[%emt 0:03:20]} Nb6 {[%emt 0:04:43]} 24. Nxc6 {[%emt 0:01:23]} bxc6 {[%emt 0:00:08]} 25. Qxc6 {[%emt 0:01:15]} 1-0

[Event "98th Caplin Hastings Masters 2024-25"]
[Site "Hastings"]
[Date "2024.12.30"]
[Round "4.22"]
[White "Abrahams, Daniel"]
[Black "Rubeck, Jonathan"]
[Result "1-0"]
[ECO "D53"]
[WhiteElo "2072"]
[BlackElo "1824"]
[Annotator "NA RC"]
[PlyCount "57"]
[EventDate "2024.12.23"]
[EventType "swiss"]
[EventCountry "ENG"]
[SourceTitle "playchess.com"]
[Source "ChessBase"]
[SourceQuality "1"]
[TimeControl "5400+30"]

1. d4 {[%emt 0:00:03]} d5 {[%emt 0:00:13]} 2. c4 {[%emt 0:00:10]} e6 {[%emt 0:00:05]} 3. Nc3 {[%emt 0:00:12]} Nf6 {[%emt 0:00:22]} 4. cxd5 {[%emt 0:00:10]} exd5 {[%emt 0:00:06]} 5. Bg5 {[%emt 0:00:06]} Be7 {[%emt 0:00:09]} 6. e3 {[%emt 0:00:07]} b6 {[%emt 0:01:19]} 7. Bd3 {[%emt 0:01:40]} Bb7 {[%emt 0:00:25]} 8. Nge2 {[%emt 0:00:10]} O-O {[%emt 0:01:14]} 9. Ng3 {[%emt 0:00:34]} c5 {[%emt 0:05:31]} 10. Nf5 {[%emt 0:02:59]} Re8 {[%emt 0:06:23]} 11. Qf3 {[%emt 0:03:40]} cxd4 {[%emt 0:03:48]} 12. exd4 {[%emt 0:04:44]} Bb4+ {[%emt 0:05:31]} 13. Kf1 {[%emt 0:01:21]} Re6 {[%emt 0:09:32]} 14. h4 {[%emt 0:01:44]} Bxc3 {[%emt 0:06:14]} 15. bxc3 {[%emt 0:00:10]} Ba6 {[%emt 0:00:43]} 16. Bxa6 {[%emt 0:00:36]} Nxa6 {[%emt 0:00:04]} 17. Rh3 {[%emt 0:00:21]} Nc7 {[%emt 0:09:57]} 18. Rg3 {[%emt 0:04:53]} Nce8 {[%emt 0:04:50]} 19. h5 {[%emt 0:01:58]} Ne4 {[%emt 0:11:14]} 20. Nh6+ {[%emt 0:08:26]} Rxh6 {[%emt 0:02:58]} 21. Bxh6 {[%emt 0:00:13]} Nxg3+ {[%emt 0:01:54]} 22. Qxg3 {[%emt 0:00:06]} Qd6 {[%emt 0:01:03]} 23. Bf4 {[%emt 0:00:13]} Qc6 {[%emt 0:05:43]} 24. h6 {[%emt 0:03:20]} g6 {[%emt 0:03:05]} 25. Re1 {[%emt 0:01:48]} Nf6 {[%emt 0:01:21]} 26. Bg5 {[%emt 0:03:33]} Ne4 {[%emt 0:03:25]} 27. Qe5 {[%emt 0:00:54]} f6 {[%emt 0:00:50]} 28. Qe7 {[%emt 0:00:12]} Ng3+ {[%emt 0:05:05]} 29. fxg3 {[%emt 0:00:11]} 1-0

[Event "98th Caplin Hastings Masters 2024-25"]
[Site "Hastings"]
[Date "2024.12.30"]
[Round "4.23"]
[White "Byron, Alan M"]
[Black "Kim, Yegeon"]
[Result "1/2-1/2"]
[ECO "E66"]
[WhiteElo "2069"]
[BlackElo "1697"]
[Annotator "NA"]
[PlyCount "91"]
[EventDate "2024.12.23"]
[EventType "swiss"]
[EventCountry "ENG"]
[SourceTitle "playchess.com"]
[Source "ChessBase"]
[SourceQuality "1"]
[TimeControl "5400+30"]

1. d4 {[%emt 0:00:03]} Nf6 {[%emt 0:00:13]} 2. Nf3 {[%emt 0:00:37]} g6 {[%emt 0:00:42]} 3. g3 {[%emt 0:01:46]} Bg7 {[%emt 0:00:49]} 4. Bg2 {[%emt 0:02:39]} O-O {[%emt 0:00:27]} 5. O-O {[%emt 0:00:06]} d6 {[%emt 0:01:00]} 6. c4 {[%emt 0:00:50]} c5 {[%emt 0:01:03]} 7. Nc3 {[%emt 0:01:48]} Nc6 {[%emt 0:00:15]} 8. d5 {[%emt 0:06:26]} Na5 {[%emt 0:01:09]} 9. Nd2 {[%emt 0:00:08]} a6 {[%emt 0:01:53]} 10. Qc2 {[%emt 0:04:13]} Rb8 {[%emt 0:03:54]} 11. Rb1 {[%emt 0:08:38]} Nd7 {[%emt 0:12:21]} 12. a4 {[%emt 0:12:35]} Ne5 {[%emt 0:09:09]} 13. b3 {[%emt 0:01:38]} Bd7 {[%emt 0:01:47]} 14. h3 {[%emt 0:06:01]} Be8 {[%emt 0:20:40]} 15. f4 {[%emt 0:06:02]} Nd7 {[%emt 0:00:30]} 16. Nf3 {[%emt 0:00:38]} Nb6 {[%emt 0:03:25]} 17. e4 {[%emt 0:14:16]} Na8 {[%emt 0:04:35]} 18. Bd2 {[%emt 0:06:00]} b5 {[%emt 0:08:35]} 19. axb5 {[%emt 0:00:08]} axb5 {[%emt 0:00:16]} 20. Ne2 {[%emt 0:00:43]} Qb6 {[%emt 0:08:38]} 21. Qa2 {[%emt 0:06:50]} Nb7 {[%emt 0:02:15]} 22. e5 {[%emt 0:02:51]} Nc7 {[%emt 0:02:08]} 23. Bc3 {[%emt 0:01:46]} Ra8 {[%emt 0:07:09]} 24. Qd2 {[%emt 0:00:19]} e6 {[%emt 0:04:44]} 25. dxe6 {[%emt 0:04:41]} Nxe6 {[%emt 0:00:47]} 26. exd6 {[%emt 0:00:15]} Nxd6 {[%emt 0:00:52]} 27. Bxg7 {[%emt 0:00:25]} Nxg7 {[%emt 0:00:55]} 28. Ne5 {[%emt 0:00:29]} Rd8 {[%emt 0:01:03]} 29. Qc3 {[%emt 0:02:04]} h5 {[%emt 0:00:42]} 30. Bd5 {[%emt 0:00:13]} Kh7 {[%emt 0:00:52]} 31. Nf3 {[%emt 0:03:49]} Bc6 {[%emt 0:01:08]} 32. Ng5+ {[%emt 0:01:58]} Kg8 {[%emt 0:00:33]} 33. Rbd1 {[%emt 0:00:50]} Bxd5 {[%emt 0:01:24]} 34. Rxd5 {[%emt 0:00:02]} Ndf5 {[%emt 0:00:28]} 35. Rfd1 {[%emt 0:01:42]} Rxd5 {[%emt 0:00:37]} 36. Rxd5 {[%emt 0:00:03]} bxc4 {[%emt 0:00:29]} 37. bxc4 {[%emt 0:00:25]} Rd8 {[%emt 0:01:33]} 38. Qd3 {[%emt 0:01:33]} Rxd5 {[%emt 0:00:00]} 39. Qxd5 {[%emt 0:00:04]} Ne6 {[%emt 0:00:14]} 40. Nxe6 {[%emt 0:02:18]} Qxe6 {[%emt 0:00:11]} 41. Qxe6 {[%emt 0:00:22]} fxe6 {[%emt 0:00:01]} 42. Kf2 {[%emt 0:00:37]} Nd6 {[%emt 0:00:20]} 43. Nc1 {[%emt 0:00:06]} Nxc4 {[%emt 0:00:24]} 44. Nd3 {[%emt 0:00:18]} Kf7 {[%emt 0:00:31]} 45. Nxc5 {[%emt 0:00:08]} e5 {[%emt 0:00:09]} 46. fxe5 {[%emt 0:02:31]} 1/2-1/2

[Event "98th Caplin Hastings Masters 2024-25"]
[Site "Hastings"]
[Date "2024.12.30"]
[Round "4.24"]
[White "Lishoy Gengis Paratazham, Dildarav"]
[Black "Royal, Shreyas"]
[Result "0-1"]
[ECO "B20"]
[WhiteElo "2037"]
[BlackElo "2522"]
[Annotator "RC"]
[PlyCount "128"]
[EventDate "2024.12.23"]
[EventType "swiss"]
[EventCountry "ENG"]
[SourceTitle "playchess.com"]
[Source "ChessBase"]
[SourceQuality "1"]
[TimeControl "5400+30"]

1. e4 {[%emt 0:00:02]} c5 {[%emt 0:00:05]} 2. d3 {[%emt 0:00:08]} Nc6 {[%emt 0:00:07]} 3. g3 {[%emt 0:00:04]} g6 {[%emt 0:00:07]} 4. Bg2 {[%emt 0:00:03]} Bg7 {[%emt 0:00:05]} 5. f4 {[%emt 0:00:04]} d5 {[%emt 0:00:04]} 6. exd5 {[%emt 0:18:03]} Nb4 {[%emt 0:00:01]} 7. c4 {[%emt 0:07:05]} Bf5 {[%emt 0:00:07]} 8. Be4 {[%emt 0:02:03]} Qa5 {[%emt 0:00:05]} 9. Kf1 {[%emt 0:09:54]} e6 {[%emt 0:00:21]} 10. Bxf5 {[%emt 0:01:18]} gxf5 {[%emt 0:00:27]} 11. dxe6 {[%emt 0:03:09]} O-O-O {[%emt 0:00:15]} 12. Nc3 {[%emt 0:03:55]} fxe6 {[%emt 0:05:23]} 13. Qe2 {[%emt 0:03:50]} Nxd3 {[%emt 0:12:38]} 14. Bd2 {[%emt 0:08:13]} Nxb2 {[%emt 0:06:57]} 15. Ne4 {[%emt 0:01:41]} Qa3 {[%emt 0:00:46]} 16. Ng5 {[%emt 0:01:29]} Nh6 {[%emt 0:01:24]} 17. N1f3 {[%emt 0:02:04]} Nd3 {[%emt 0:03:41]} 18. Rb1 {[%emt 0:02:38]} Qxa2 {[%emt 0:00:36]} 19. Kg2 {[%emt 0:00:12]} Rhe8 {[%emt 0:00:18]} 20. Rhd1 {[%emt 0:03:22]} e5 {[%emt 0:02:58]} 21. fxe5 {[%emt 0:02:28]} Nxe5 {[%emt 0:00:08]} 22. Qf2 {[%emt 0:01:11]} Nd3 {[%emt 0:00:47]} 23. Qf1 {[%emt 0:01:16]} Ng4 {[%emt 0:01:21]} 24. Kg1 {[%emt 0:00:10]} Ngf2 {[%emt 0:00:15]} 25. Ra1 {[%emt 0:01:29]} Bxa1 {[%emt 0:00:53]} 26. Rxa1 {[%emt 0:00:02]} Qxc4 {[%emt 0:00:13]} 27. Rxa7 {[%emt 0:00:17]} Qb3 {[%emt 0:02:08]} 28. Ba5 {[%emt 0:02:24]} Kb8 {[%emt 0:01:44]} 29. Qa1 {[%emt 0:01:09]} Qd1+ {[%emt 0:00:05]} 30. Qxd1 {[%emt 0:00:06]} Nxd1 {[%emt 0:00:04]} 31. Bxd8 {[%emt 0:00:14]} Kxa7 {[%emt 0:00:04]} 32. Ba5 {[%emt 0:00:07]} c4 {[%emt 0:00:13]} 33. Nd4 {[%emt 0:00:09]} Ka6 {[%emt 0:00:26]} 34. Bd2 {[%emt 0:00:14]} c3 {[%emt 0:00:04]} 35. Bf4 {[%emt 0:00:05]} Nxf4 {[%emt 0:00:16]} 36. gxf4 {[%emt 0:00:02]} Ne3 {[%emt 0:00:08]} 37. Ngf3 {[%emt 0:00:09]} c2 {[%emt 0:00:05]} 38. Nb3 {[%emt 0:00:02]} Rd8 {[%emt 0:00:21]} 39. Kf2 {[%emt 0:00:06]} Ng4+ {[%emt 0:00:07]} 40. Ke2 {[%emt 0:00:04]} Rd1 {[%emt 0:00:06]} 41. h3 {[%emt 0:00:11]} Nf6 {[%emt 0:00:04]} 42. Ne1 {[%emt 0:00:14]} c1=R {[%emt 0:00:10]} 43. Nxc1 {[%emt 0:00:12]} Rxc1 {[%emt 0:00:04]} 44. Nd3 {[%emt 0:00:06]} Rh1 {[%emt 0:00:09]} 45. Nc5+ {[%emt 0:00:03]} Ka7 {[%emt 0:00:04]} 46. Ne6 {[%emt 0:00:06]} Nd5 {[%emt 0:00:05]} 47. Nd4 {[%emt 0:00:10]} Rxh3 {[%emt 0:00:10]} 48. Nxf5 {[%emt 0:00:05]} Nxf4+ {[%emt 0:00:05]} 49. Kd2 {[%emt 0:00:04]} Rd3+ {[%emt 0:00:13]} 50. Kc2 {[%emt 0:00:06]} h5 {[%emt 0:00:03]} 51. Nh4 {[%emt 0:00:04]} Rh3 {[%emt 0:00:05]} 52. Nf5 {[%emt 0:00:05]} h4 {[%emt 0:00:02]} 53. Kd2 {[%emt 0:00:03]} Rd3+ {[%emt 0:00:05]} 54. Kc2 {[%emt 0:00:09]} h3 {[%emt 0:00:02]} 55. Ng7 {[%emt 0:00:18]} h2 {[%emt 0:00:09]} 56. Ne6 {[%emt 0:00:05]} Rf3 {[%emt 0:00:04]} 57. Nd4 {[%emt 0:00:04]} Rf2+ {[%emt 0:00:04]} 58. Kb3 {[%emt 0:00:04]} h1=Q {[%emt 0:00:04]} 59. Nb5+ {[%emt 0:00:05]} Kb6 {[%emt 0:00:03]} 60. Nc3 {[%emt 0:00:06]} Rf3 {[%emt 0:00:10]} 61. Kb2 {[%emt 0:00:06]} Qg2+ {[%emt 0:00:06]} 62. Kb3 {[%emt 0:00:06]} Qd2 {[%emt 0:00:04]} 63. Ka4 {[%emt 0:00:06]} Rxc3 {[%emt 0:00:03]} 64. Kb4 {[%emt 0:00:04]} Qd4# {[%emt 0:00:36]} 0-1

[Event "98th Caplin Hastings Masters 2024-25"]
[Site "Hastings"]
[Date "2024.12.30"]
[Round "4.25"]
[White "Gasanov, Eldar"]
[Black "Verbytski, Oleg"]
[Result "1-0"]
[ECO "B20"]
[WhiteElo "2476"]
[BlackElo "2033"]
[Annotator "RC"]
[PlyCount "73"]
[EventDate "2024.12.23"]
[EventType "swiss"]
[EventCountry "ENG"]
[SourceTitle "playchess.com"]
[Source "ChessBase"]
[SourceQuality "1"]
[TimeControl "5400+30"]

1. e4 {[%emt 0:00:14]} c5 {[%emt 0:00:03]} 2. g3 {[%emt 0:00:12]} e6 {[%emt 0:00:44]} 3. d3 {[%emt 0:00:52]} g6 {[%emt 0:00:35]} 4. Bg2 {[%emt 0:02:04]} Bg7 {[%emt 0:01:08]} 5. f4 {[%emt 0:00:40]} Ne7 {[%emt 0:00:28]} 6. Nf3 {[%emt 0:00:26]} d5 {[%emt 0:01:27]} 7. O-O {[%emt 0:03:21]} Nbc6 {[%emt 0:02:44]} 8. e5 {[%emt 0:00:59]} O-O {[%emt 0:02:08]} 9. c3 {[%emt 0:01:49]} d4 {[%emt 0:02:38]} 10. Qe2 {[%emt 0:10:27]} dxc3 {[%emt 0:01:54]} 11. bxc3 {[%emt 0:06:49]} b6 {[%emt 0:01:51]} 12. Ng5 {[%emt 0:10:38]} Ba6 {[%emt 0:07:53]} 13. Rd1 {[%emt 0:00:45]} Qc7 {[%emt 0:01:45]} 14. Nd2 {[%emt 0:05:47]} Rad8 {[%emt 0:02:02]} 15. Nde4 {[%emt 0:00:59]} Rd7 {[%emt 0:08:35]} 16. Bb2 {[%emt 0:09:48]} Rfd8 {[%emt 0:02:34]} 17. Nxf7 {[%emt 0:05:07]} Bxd3 {[%emt 0:08:27]} 18. Rxd3 {[%emt 0:04:02]} Rxd3 {[%emt 0:00:10]} 19. Nxd8 {[%emt 0:03:04]} Rxd8 {[%emt 0:00:30]} 20. Rd1 {[%emt 0:10:14]} Rxd1+ {[%emt 0:05:54]} 21. Qxd1 {[%emt 0:00:11]} Qd8 {[%emt 0:01:15]} 22. Qe2 {[%emt 0:02:58]} Qd7 {[%emt 0:06:16]} 23. h4 {[%emt 0:01:07]} Nf5 {[%emt 0:06:15]} 24. h5 {[%emt 0:01:04]} gxh5 {[%emt 0:04:08]} 25. Qxh5 {[%emt 0:01:09]} Ne3 {[%emt 0:02:25]} 26. Bh3 {[%emt 0:02:22]} Nd8 {[%emt 0:03:41]} 27. Qe2 {[%emt 0:01:47]} Nd5 {[%emt 0:02:44]} 28. a3 {[%emt 0:03:40]} Kh8 {[%emt 0:02:10]} 29. c4 {[%emt 0:00:45]} Nc7 {[%emt 0:02:47]} 30. Nf6 {[%emt 0:00:57]} Qe7 {[%emt 0:00:56]} 31. Qd3 {[%emt 0:00:24]} Bf8 {[%emt 0:01:36]} 32. Bg2 {[%emt 0:04:09]} h6 {[%emt 0:05:43]} 33. Bc3 {[%emt 0:01:47]} Na6 {[%emt 0:02:24]} 34. g4 {[%emt 0:01:12]} Nb7 {[%emt 0:00:22]} 35. Qg6 {[%emt 0:00:47]} Qg7 {[%emt 0:00:38]} 36. Qxg7+ {[%emt 0:00:19]} Bxg7 {[%emt 0:00:04]} 37. Bxb7 {[%emt 0:00:08]} 1-0

[Event "98th Caplin Hastings Masters 2024-25"]
[Site "Hastings"]
[Date "2024.12.30"]
[Round "4.26"]
[White "Jacobs, Simon"]
[Black "Bhatia, Kanishka"]
[Result "0-1"]
[ECO "C10"]
[WhiteElo "1873"]
[BlackElo "2018"]
[Annotator "NA RC"]
[PlyCount "56"]
[EventDate "2024.12.23"]
[EventType "swiss"]
[EventCountry "ENG"]
[SourceTitle "playchess.com"]
[Source "ChessBase"]
[SourceQuality "1"]
[TimeControl "5400+30"]

1. e4 {[%emt 0:00:05]} e6 {[%emt 0:00:16]} 2. d4 {[%emt 0:00:16]} d5 {[%emt 0:00:11]} 3. Nd2 {[%emt 0:00:07]} dxe4 {[%emt 0:00:11]} 4. Nxe4 {[%emt 0:00:08]} Nd7 {[%emt 0:00:10]} 5. Nf3 {[%emt 0:00:16]} Ngf6 {[%emt 0:00:07]} 6. Nxf6+ {[%emt 0:00:12]} Nxf6 {[%emt 0:00:07]} 7. Be3 {[%emt 0:00:47]} Be7 {[%emt 0:00:32]} 8. Bd3 {[%emt 0:00:38]} O-O {[%emt 0:00:37]} 9. Qe2 {[%emt 0:00:42]} b6 {[%emt 0:01:23]} 10. O-O-O {[%emt 0:00:15]} Bb7 {[%emt 0:01:21]} 11. Kb1 {[%emt 0:01:42]} c5 {[%emt 0:04:43]} 12. h4 {[%emt 1:31:22]} Qc7 {[%emt 0:02:36]} 13. h5 {[%emt 0:00:00]} Rac8 {[%emt 0:02:08]} 14. b3 {[%emt 0:00:00]} Nd5 {[%emt 0:03:43]} 15. Qd2 {[%emt 0:00:00]} cxd4 {[%emt 0:32:48]} 16. Bxd4 {[%emt 0:00:00]} Bb4 {[%emt 0:01:54]} 17. Qg5 {[%emt 0:00:00]} Nc3+ {[%emt 0:01:14]} 18. Bxc3 {[%emt 0:00:00]} Qxc3 {[%emt 0:01:50]} 19. Qc1 {[%emt 0:00:00]} h6 {[%emt 0:02:11]} 20. Qb2 {[%emt 0:00:00]} Qc5 {[%emt 0:01:19]} 21. Rdf1 {[%emt 0:00:00]} Bc3 {[%emt 0:00:46]} 22. Qc1 {[%emt 0:00:00]} Rfd8 {[%emt 0:00:55]} 23. Rh4 {[%emt 0:00:00]} b5 {[%emt 0:00:46]} 24. Nd2 {[%emt 0:00:00]} Bf6 {[%emt 0:01:41]} 25. Rf4 {[%emt 0:00:00]} Qe5 {[%emt 0:02:46]} 26. Rxf6 {[%emt 0:00:00]} Qxf6 {[%emt 0:00:01]} 27. Bxb5 {[%emt 0:00:00]} Qg5 {[%emt 0:01:26]} 28. Bd3 {[%emt 0:00:00]} Rxd3 {[%emt 0:00:19]} 0-1